bitfinex-derivatives/quotes_BTCF0:USTF0_20250527
["timestamp","ask_amount","ask_price","bid_price","bid_amount"]
[1748333897261,0.33696907,109730.0,109720.0,0.59510923]
[1748333897764,0.33696907,109730.0,109720.0,0.95590923]
[1748333900866,0.33696907,109730.0,109720.0,0.96159034]
[1748333903372,0.33696907,109730.0,109720.0,0.96059034]
[1748333903559,0.33696907,109730.0,109720.0,0.95859034]
[1748333904465,0.33696907,109730.0,109720.0,0.77636314]
[1748333905665,0.33696907,109730.0,109720.0,0.82224422]
[1748333906270,0.27376907,109730.0,109720.0,1.00447142]
[1748333906475,0.68392907,109730.0,109720.0,1.00447142]
[1748333906858,0.71452907,109730.0,109720.0,1.00447142]
[1748333907070,0.71452907,109730.0,109720.0,1.00068939]
[1748333907472,0.2734472,109730.0,109720.0,1.12922835]
[1748333907666,0.2734472,109730.0,109720.0,1.42702835]
[1748333907868,0.2733272,109730.0,109720.0,1.42702835]
[1748333908064,0.2734472,109730.0,109720.0,1.42702835]
[1748333908466,0.3035472,109730.0,109720.0,1.42702835]
[1748333908666,0.3035472,109730.0,109720.0,1.11816032]
[1748333908975,0.33406907,109730.0,109720.0,1.30238752]
[1748333909468,0.33406907,109730.0,109720.0,1.30338752]
[1748333910672,0.33406907,109730.0,109720.0,1.00558752]
[1748333910970,0.33406907,109730.0,109720.0,1.00368749]
[1748333911166,0.3337472,109730.0,109720.0,1.00368749]
[1748333911377,0.33406907,109730.0,109720.0,1.00368749]
[1748333912374,0.33406907,109730.0,109720.0,0.84886834]
[1748333912566,0.36676907,109730.0,109720.0,0.84886834]
[1748333912766,0.36676907,109730.0,109720.0,0.85076837]
[1748333914663,0.36676907,109730.0,109720.0,0.30774117]
[1748333915675,0.36676907,109730.0,109720.0,0.30584983]
[1748333915873,0.85610803,109730.0,109720.0,0.30584983]
[1748333916078,1.79690803,109730.0,109720.0,0.11516885]
[1748333916266,1.80129985,109730.0,109720.0,0.11416885]
[1748333916668,1.80129985,109730.0,109720.0,0.11795815]
[1748333916877,1.80129985,109730.0,109720.0,0.11595815]
[1748333917372,1.79690803,109730.0,109720.0,0.06605815]
[1748333917575,1.79790803,109730.0,109720.0,0.06605815]
[1748333918276,1.80229985,109730.0,109720.0,0.11193923]
[1748333918481,1.80329985,109730.0,109720.0,0.11193923]
[1748333918668,1.89443585,109730.0,109720.0,0.11193923]
[1748333919063,1.76589689,109730.0,109720.0,0.11193923]
[1748333919277,1.89443585,109730.0,109720.0,0.11193923]
[1748333919979,1.89443585,109730.0,109720.0,0.12464911]
[1748333920280,1.89004403,109730.0,109720.0,0.12464911]
[1748333920777,1.89004403,109730.0,109720.0,0.07592267]
[1748333921771,1.76150507,109730.0,109720.0,0.07592267]
[1748333922079,1.89004403,109730.0,109720.0,0.07592267]
[1748333922867,2.14004403,109730.0,109720.0,0.07592267]
[1748333923376,2.14443585,109730.0,109720.0,0.07592267]
[1748333924674,2.14443585,109730.0,109720.0,0.12190396]
[1748333925179,1.89411398,109730.0,109720.0,0.12190396]
[1748333925370,1.89004403,109730.0,109720.0,0.12190396]
[1748333925771,1.89004403,109730.0,109720.0,0.06929083]
[1748333926582,1.76150507,109730.0,109720.0,0.06929083]
[1748333926777,1.89004403,109730.0,109720.0,0.05658095]
[1748333927477,1.89004403,109730.0,109720.0,0.06933283]
[1748333927666,1.89004403,109730.0,109720.0,0.05658095]
[1748333928280,1.89004403,109730.0,109720.0,0.0693324]
[1748333928988,1.89004403,109730.0,109720.0,0.05942428]
[1748333929285,2.25084403,109730.0,109720.0,0.05942428]
[1748333929487,2.25084403,109730.0,109720.0,0.05658095]
[1748333929874,2.25084403,109730.0,109720.0,0.06933057]
[1748333930271,2.25084403,109730.0,109720.0,0.05658095]
[1748333930778,2.25084403,109730.0,109720.0,0.05942206]
[1748333930974,2.25084403,109730.0,109720.0,0.07217194]
[1748333931282,3.28452403,109730.0,109720.0,0.07217194]
[1748333931985,2.87440403,109730.0,109720.0,0.07217194]
[1748333932170,3.28460403,109730.0,109720.0,0.07217194]
[1748333932376,3.28460403,109730.0,109720.0,0.06933083]
[1748333933288,3.28460403,109730.0,109720.0,0.07217194]
[1748333933585,3.28460403,109730.0,109720.0,0.06933083]
[1748333934581,3.28899585,109730.0,109720.0,0.06933083]
[1748333934989,3.28899585,109730.0,109720.0,0.07217124]
[1748333935386,3.28899585,109730.0,109720.0,0.05942136]
[1748333936283,3.28899585,109730.0,109720.0,0.07209656]
[1748333937687,3.28460403,109730.0,109720.0,0.07209656]
[1748333937883,3.29810514,109730.0,109720.0,0.07209656]
[1748333938189,3.29810514,109730.0,109720.0,0.06925615]
[1748333938592,3.30249696,109730.0,109720.0,0.06925615]
[1748333938980,3.30237696,109730.0,109720.0,0.06925615]
[1748333939792,3.29798514,109730.0,109720.0,0.06925615]
[1748333940587,3.26366654,109730.0,109720.0,0.06925615]
[1748333940986,3.35480254,109730.0,109720.0,0.06925615]
[1748333941586,3.26366654,109730.0,109720.0,0.05658095]
[1748333941988,3.13512758,109730.0,109720.0,0.05658095]
[1748333942190,3.26366654,109730.0,109720.0,0.05658095]
[1748333942485,3.26366654,109730.0,109720.0,0.06942168]
[1748333943894,3.35480254,109730.0,109720.0,0.06942168]
[1748333944895,3.44002865,109730.0,109720.0,0.06942168]
[1748333947490,3.34889265,109730.0,109720.0,0.06942168]
[1748333947697,3.44002865,109730.0,109720.0,0.10256385]
[1748333948398,3.44002865,109730.0,109720.0,0.11543638]
[1748333949592,3.44002865,109730.0,109720.0,0.06427298]
[1748333949792,3.44002865,109730.0,109720.0,0.10000008]
[1748333949990,3.44002865,109730.0,109720.0,8e-08]
[1748333950689,3.38321125,109730.0,109720.0,8e-08]
[1748333951194,2.44233125,109730.0,109720.0,8e-08]
[1748333951399,3.38133125,109730.0,109720.0,8e-08]
[1748333952596,3.29019525,109730.0,109720.0,8e-08]
[1748333954500,3.28919525,109730.0,109720.0,8e-08]
[1748333954700,3.29319525,109730.0,109720.0,8e-08]
[1748333955492,3.38433125,109730.0,109720.0,8e-08]
[1748333961004,3.38872307,109730.0,109720.0,8e-08]
[1748333961412,2.23004811,109730.0,109720.0,8e-08]
[1748333961708,0.09461793,109730.0,109720.0,0.4632273]
[1748333961890,0.09473793,109730.0,109720.0,0.8240273]
[1748333962094,0.09034611,109730.0,109720.0,1.0740273]
[1748333962301,0.09022611,109730.0,109720.0,1.0740273]
[1748333962491,0.00512,109730.0,109720.0,1.0740273]
[1748333962898,1.20262966,109730.0,109720.0,0.281]
[1748333963109,1.23562148,109730.0,109720.0,0.281]
[1748333963509,1.10708252,109730.0,109720.0,0.281]
[1748333963700,0.57812252,109730.0,109720.0,0.29048803]
[1748333963902,1.51432252,109730.0,109720.0,0.29048803]
[1748333964206,1.64286148,109730.0,109720.0,0.29048803]
[1748333965004,1.51432252,109730.0,109720.0,0.29048803]
[1748333965198,1.5099307,109730.0,109720.0,0.29048803]
[1748333965703,1.63879153,109730.0,109720.0,0.29048803]
[1748333965906,0.1823307,109730.0,109720.0,0.29048803]
[1748333966102,0.00013688,109740.0,109730.0,0.1822107]
[1748333966408,0.05689617,109750.0,109740.0,0.1821941]
[1748333966701,0.08522611,109760.0,109750.0,0.1821775]
[1748333966905,0.26738701,109760.0,109750.0,0.9540895]
[1748333967105,0.21748701,109760.0,109750.0,1.33262846]
[1748333967309,0.21748701,109760.0,109750.0,1.2040895]
[1748333967610,0.1822809,109760.0,109750.0,1.21589867]
[1748333968109,0.1822809,109760.0,109750.0,1.34443763]
[1748333968303,0.1822809,109760.0,109750.0,1.21589867]
[1748333968810,0.1822809,109760.0,109750.0,1.27594299]
[1748333969105,0.1822809,109760.0,109750.0,1.41014678]
[1748333969311,0.1822809,109760.0,109750.0,1.28160782]
[1748333969497,0.1822809,109760.0,109750.0,1.31300782]
[1748333969694,0.1822809,109760.0,109750.0,1.34660782]
[1748333969909,0.1822809,109760.0,109750.0,1.34860782]
[1748333970108,0.59245448,109770.0,109760.0,0.1821609]
[1748333970109,0.00013688,109770.0,109760.0,0.1821609]
[1748333970313,0.16371389,109780.0,109770.0,0.1821443]
[1748333970510,0.27757862,109790.0,109780.0,0.1821277]
[1748333970716,0.27757862,109790.0,109780.0,0.4145]
[1748333971318,0.2731868,109790.0,109780.0,0.5966277]
[1748333971512,0.3055868,109790.0,109780.0,0.4145]
[1748333971713,0.3055868,109790.0,109780.0,0.41732122]
[1748333971917,0.3057068,109790.0,109780.0,0.41732122]
[1748333972715,0.3369068,109790.0,109780.0,0.41732122]
[1748333972917,0.3369068,109790.0,109780.0,0.4145]
[1748333972918,0.6977068,109790.0,109780.0,0.4145]
[1748333973321,0.69814867,109790.0,109780.0,0.4145]
[1748333973521,0.69814867,109790.0,109780.0,0.393]
[1748333974222,0.69814867,109790.0,109780.0,0.233]
[1748333974628,0.6977068,109790.0,109780.0,0.4151277]
[1748333975122,1.1077468,109790.0,109780.0,0.4151277]
[1748333975327,1.11201862,109790.0,109780.0,0.233]
[1748333975529,1.24111945,109790.0,109780.0,0.233]
[1748333977634,1.11258049,109790.0,109780.0,0.233]
[1748333979237,0.70254049,109790.0,109780.0,0.233]
[1748333979439,1.11254049,109790.0,109780.0,0.233]
[1748333980528,0.70254049,109790.0,109780.0,0.233]
[1748333980735,1.11254049,109790.0,109780.0,0.233]
[1748333982636,1.11254049,109790.0,109780.0,0.2014]
[1748333985240,1.11254049,109790.0,109780.0,0.3835281]
[1748333986535,1.11254049,109790.0,109780.0,0.2014]
[1748333988240,1.24107945,109790.0,109780.0,0.2014]
[1748333988438,1.24107945,109790.0,109780.0,0.3835281]
[1748333988628,1.24107945,109790.0,109780.0,0.2014]
[1748333989431,1.24107945,109790.0,109780.0,0.17]
[1748333989737,1.11254049,109790.0,109780.0,0.17]
[1748333989951,1.24107945,109790.0,109780.0,0.17]
[1748333990247,1.24107945,109790.0,109780.0,0.3521281]
[1748333990840,1.24107945,109790.0,109780.0,0.17]
[1748333992042,1.24107945,109790.0,109780.0,0.17281187]
[1748333994250,1.24107945,109790.0,109780.0,0.17656338]
[1748333995140,1.24107945,109790.0,109780.0,0.17375151]
[1748333996543,1.11254049,109790.0,109780.0,0.17563078]
[1748333996745,1.24107945,109790.0,109780.0,0.17563078]
[1748333999342,0.83107945,109790.0,109780.0,0.35775898]
[1748333999547,1.11201862,109790.0,109780.0,0.35775898]
[1748333999746,0.7012962,109790.0,109780.0,0.39025898]
[1748334000345,0.06372,109790.0,109780.0,0.3921453]
[1748334000545,0.2458316,109790.0,109780.0,0.2577806]
[1748334000750,0.66002342,109790.0,109780.0,0.5439453]
[1748334001138,0.25022342,109790.0,109780.0,0.2975171]
[1748334001342,1.14992425,109790.0,109780.0,0.2975171]
[1748334001542,1.14948238,109790.0,109780.0,0.2975171]
[1748334001843,1.14948238,109790.0,109780.0,0.3281171]
[1748334002050,1.14948238,109790.0,109780.0,0.2975171]
[1748334003045,1.14992425,109790.0,109780.0,0.2975171]
[1748334003353,0.61146529,109790.0,109780.0,0.29]
[1748334003556,1.14992425,109790.0,109780.0,0.29]
[1748334004751,1.14992425,109790.0,109780.0,0.29569181]
[1748334004953,0.61146529,109790.0,109780.0,0.29569181]
[1748334005152,1.14992425,109790.0,109780.0,0.32879181]
[1748334005543,1.14992425,109790.0,109780.0,0.29569181]
[1748334007452,1.02138529,109790.0,109780.0,0.29569181]
[1748334007643,1.14992425,109790.0,109780.0,0.29569181]
[1748334007844,1.14553243,109790.0,109780.0,0.29569181]
[1748334008750,0.78473243,109790.0,109780.0,0.29569181]
[1748334008947,1.14553243,109790.0,109780.0,0.29569181]
[1748334010049,1.01699347,109790.0,109780.0,0.29569181]
[1748334010255,1.14553243,109790.0,109780.0,0.29569181]
[1748334010649,1.14553243,109790.0,109780.0,0.2975171]
[1748334011257,1.14553243,109790.0,109780.0,0.4796453]
[1748334011450,1.14509056,109790.0,109780.0,0.5127453]
[1748334011657,1.14553243,109790.0,109780.0,0.5127453]
[1748334011852,1.14541243,109790.0,109780.0,0.5127453]
[1748334012058,1.14553243,109790.0,109780.0,0.5127453]
[1748334012860,1.14553243,109790.0,109780.0,0.55968546]
[1748334013062,1.01699347,109790.0,109780.0,0.55968546]
[1748334014654,0.60707347,109790.0,109780.0,0.37755726]
[1748334014847,1.01699347,109790.0,109780.0,0.37755726]
[1748334015052,1.14553243,109790.0,109780.0,0.37755726]
[1748334015448,1.01699347,109790.0,109780.0,0.55968546]
[1748334015763,1.14553243,109790.0,109780.0,0.37755726]
[1748334016366,1.01699347,109790.0,109780.0,0.37755726]
[1748334016567,1.14553243,109790.0,109780.0,0.37755726]
[1748334017262,0.73561243,109790.0,109780.0,0.34445726]
[1748334017463,1.14553243,109790.0,109780.0,0.34445726]
[1748334017767,1.14553243,109790.0,109780.0,0.15445726]
[1748334017960,0.73561243,109790.0,109780.0,0.15445726]
[1748334018365,1.66761243,109790.0,109780.0,0.15445726]
[1748334018565,1.66773243,109790.0,109780.0,0.15445726]
[1748334018771,1.66773243,109790.0,109780.0,0.15643357]
[1748334019265,1.53919347,109790.0,109780.0,0.15643357]
[1748334019466,1.66773243,109790.0,109780.0,0.15643357]
[1748334019965,1.53919347,109790.0,109780.0,0.15643357]
[1748334020167,1.66773243,109790.0,109780.0,0.15643357]
[1748334021067,1.66401243,109790.0,109780.0,0.15643357]
[1748334023574,1.66405243,109790.0,109780.0,1e-08]
[1748334023870,1.66405243,109790.0,109780.0,0.06591391]
[1748334024065,0.1821283,109780.0,109770.0,0.00013688]
[1748334024268,0.70230913,109780.0,109770.0,0.13013688]
[1748334024466,0.70230913,109780.0,109770.0,0.02121678]
[1748334024670,0.1821449,109770.0,109760.0,0.0169252]
[1748334024878,1.60036573,109770.0,109760.0,0.1069252]
[1748334025070,1.60036573,109770.0,109760.0,0.09284174]
[1748334025273,2.63344573,109770.0,109760.0,0.09284174]
[1748334025770,2.63344573,109770.0,109760.0,0.04294174]
[1748334026575,2.69029633,109770.0,109760.0,0.0411]
[1748334026778,2.56175737,109770.0,109760.0,0.0411]
[1748334027075,2.69029633,109770.0,109760.0,0.0411]
[1748334027276,2.75399633,109770.0,109760.0,0.0411]
[1748334027780,2.69714573,109770.0,109760.0,0.0411]
[1748334027971,2.69714573,109770.0,109760.0,0.005771]
[1748334028770,2.72804573,109770.0,109760.0,0.005771]
[1748334028976,2.72804573,109770.0,109760.0,0.004771]
[1748334029176,2.19254677,109770.0,109760.0,0.004771]
[1748334029487,2.73108573,109770.0,109760.0,0.004771]
[1748334029782,2.73408573,109770.0,109760.0,0.003771]
[1748334030480,2.32408573,109770.0,109760.0,0.003771]
[1748334030683,2.73408573,109770.0,109760.0,0.003771]
[1748334031885,2.73420573,109770.0,109760.0,0.003771]
[1748334032287,2.73432573,109770.0,109760.0,0.003771]
[1748334032783,2.73432573,109770.0,109760.0,0.034271]
[1748334033282,1.80572573,109770.0,109760.0,0.034271]
[1748334033487,2.73432573,109770.0,109760.0,0.034271]
[1748334033683,2.73420573,109770.0,109760.0,0.034271]
[1748334033989,2.73432573,109770.0,109760.0,0.034271]
[1748334034478,2.73871755,109770.0,109760.0,0.034271]
[1748334035289,2.73432573,109770.0,109760.0,0.034271]
[1748334035790,2.73436573,109770.0,109760.0,0.034271]
[1748334038195,2.60582677,109770.0,109760.0,0.034271]
[1748334038389,2.73436573,109770.0,109760.0,0.034271]
[1748334041693,2.73436573,109770.0,109760.0,0.003771]
[1748334042589,2.73875755,109770.0,109760.0,0.003771]
[1748334042894,2.73875755,109770.0,109760.0,1e-07]
[1748334045186,2.73875755,109770.0,109750.0,0.00013688]
[1748334045389,0.18265277,109730.0,109720.0,0.17000006]
[1748334045584,1.96143173,109730.0,109720.0,0.20549506]
[1748334045891,2.05563173,109730.0,109720.0,0.17269506]
[1748334046292,2.05563173,109730.0,109720.0,0.20549506]
[1748334046896,2.05563173,109730.0,109720.0,0.17269506]
[1748334047294,2.05563173,109730.0,109720.0,0.17469506]
[1748334047495,2.06672611,109730.0,109720.0,0.17469506]
[1748334048397,1.12654986,109730.0,109720.0,0.17469506]
[1748334048588,2.05575173,109730.0,109720.0,0.23799506]
[1748334048789,2.05575173,109730.0,109720.0,0.2283]
[1748334048991,2.05587173,109730.0,109720.0,0.2283]
[1748334049191,1.09611173,109730.0,109720.0,0.2283]
[1748334049390,2.02491173,109730.0,109720.0,0.261]
[1748334049591,2.02930355,109730.0,109720.0,0.261]
[1748334050701,2.03030355,109730.0,109720.0,0.259]
[1748334051100,1.10150355,109730.0,109720.0,0.256]
[1748334051299,2.02842355,109730.0,109720.0,0.256]
[1748334051795,2.02842355,109730.0,109720.0,0.16]
[1748334051995,2.02842355,109730.0,109720.0,1e-07]
[1748334052304,1.89988459,109730.0,109720.0,0.01294624]
[1748334052502,1.10350355,109730.0,109720.0,0.01294624]
[1748334052692,1.48529277,109730.0,109720.0,0.06364624]
[1748334053203,2.02411173,109730.0,109720.0,0.09604624]
[1748334053401,2.02399173,109730.0,109720.0,0.09604624]
[1748334053596,2.02411173,109730.0,109720.0,0.09604624]
[1748334053896,1.10350355,109730.0,109720.0,0.09604624]
[1748334054096,2.02850355,109730.0,109720.0,0.0831]
[1748334054801,2.02411173,109730.0,109720.0,0.0831]
[1748334055192,1.09911173,109730.0,109720.0,0.0831]
[1748334055394,1.89557277,109730.0,109720.0,0.0831]
[1748334055595,2.02411173,109730.0,109720.0,0.0831]
[1748334055799,2.02850355,109730.0,109720.0,0.0831]
[1748334056701,2.02850355,109730.0,109720.0,1e-07]
[1748334056902,0.4555684,109720.0,109690.0,0.08078465]
[1748334057104,0.67159956,109700.0,109690.0,0.27595175]
[1748334057304,0.1822771,109690.0,109680.0,0.05805675]
[1748334057508,1.5306771,109690.0,109680.0,0.09136772]
[1748334057709,1.4680771,109690.0,109680.0,0.30156772]
[1748334057913,1.4681971,109690.0,109680.0,0.30156772]
[1748334058405,1.4981971,109690.0,109680.0,0.33186772]
[1748334059697,1.5291971,109690.0,109680.0,0.33186772]
[1748334061698,1.5291971,109690.0,109680.0,0.00532262]
[1748334061699,1.65817793,109690.0,109680.0,0.00532262]
[1748334061901,0.18273567,109680.0,109670.0,8e-08]
[1748334062105,0.182327,109660.0,109650.0,0.0419081]
[1748334062300,1.95762596,109660.0,109650.0,0.2794081]
[1748334062606,1.562287,109660.0,109650.0,0.27]
[1748334062805,1.530787,109660.0,109650.0,0.27]
[1748334062998,1.169987,109660.0,109650.0,0.3001]
[1748334063394,1.530787,109660.0,109650.0,0.3001]
[1748334063607,1.530907,109660.0,109650.0,0.3001]
[1748334064008,1.530907,109660.0,109650.0,0.3041]
[1748334064306,1.531907,109660.0,109650.0,0.3091]
[1748334065206,1.531907,109660.0,109650.0,0.3422]
[1748334067106,1.531907,109660.0,109650.0,0.3598]
[1748334067612,1.531907,109660.0,109650.0,0.3588]
[1748334067813,1.530907,109660.0,109650.0,0.3538]
[1748334068110,1.170307,109660.0,109650.0,0.5391436]
[1748334068312,1.170187,109660.0,109650.0,0.5391436]
[1748334068501,1.170307,109660.0,109650.0,0.3568]
[1748334068701,1.531107,109660.0,109650.0,0.3568]
[1748334069306,1.531107,109660.0,109650.0,0.37027928]
[1748334069812,1.531107,109660.0,109650.0,0.55262288]
[1748334070113,1.531107,109660.0,109650.0,0.37027928]
[1748334070910,1.531187,109660.0,109650.0,0.37027928]
[1748334071305,1.531187,109660.0,109650.0,0.55262288]
[1748334071504,0.244947,109660.0,109650.0,0.55262288]
[1748334071812,0.623807,109660.0,109650.0,0.55262288]
[1748334072206,0.623687,109660.0,109650.0,0.55262288]
[1748334072402,0.213447,109660.0,109650.0,0.54962288]
[1748334072602,0.182447,109660.0,109650.0,0.55062288]
[1748334072812,0.182447,109660.0,109650.0,0.54762288]
[1748334073214,0.182327,109660.0,109650.0,0.63881888]
[1748334073412,0.80655678,109670.0,109660.0,0.182327]
[1748334073601,0.22803678,109670.0,109660.0,0.89700628]
[1748334073915,0.22815678,109670.0,109660.0,0.89700628]
[1748334074600,0.29165678,109670.0,109660.0,0.89700628]
[1748334074824,0.28572976,109670.0,109660.0,0.89700628]
[1748334075013,0.25442976,109670.0,109660.0,0.89800628]
[1748334075615,0.28572976,109670.0,109660.0,0.89800628]
[1748334076011,0.28572976,109670.0,109660.0,0.98919428]
[1748334076217,0.18244728,109670.0,109660.0,2.18065324]
[1748334076420,0.18256728,109670.0,109660.0,2.18065324]
[1748334076807,0.18256728,109670.0,109660.0,1.99887318]
[1748334077011,0.21476728,109670.0,109660.0,2.18020018]
[1748334077208,0.21476728,109670.0,109660.0,2.18320018]
[1748334078316,0.24486728,109670.0,109660.0,2.18320018]
[1748334079214,0.24486728,109670.0,109660.0,1.92752971]
[1748334081616,0.2447304,109670.0,109660.0,1.92752971]
[1748334081823,0.23597757,109670.0,109660.0,1.93509767]
[1748334082620,0.23597757,109670.0,109660.0,1.9837287]
[1748334083119,0.23597757,109670.0,109660.0,1.85518974]
[1748334083326,0.23597757,109670.0,109660.0,1.9837287]
[1748334086223,0.23597757,109670.0,109660.0,1.97616074]
[1748334087421,0.23597757,109670.0,109660.0,1.98556884]
[1748334088128,0.26847757,109670.0,109660.0,1.45797237]
[1748334088921,0.26847757,109670.0,109660.0,1.32943341]
[1748334090618,0.67879757,109670.0,109660.0,0.87744531]
[1748334090818,0.67879757,109670.0,109660.0,1.23824531]
[1748334091332,0.67879757,109670.0,109660.0,1.24584452]
[1748334092325,0.68318939,109670.0,109660.0,1.24584452]
[1748334093431,0.66990752,109670.0,109660.0,1.24584452]
[1748334093836,0.66990752,109670.0,109660.0,1.23643642]
[1748334094532,0.66990752,109670.0,109660.0,1.36497538]
[1748334095523,0.66990752,109670.0,109660.0,1.35737617]
[1748334097032,0.66990752,109670.0,109660.0,1.22883721]
[1748334100729,0.66990752,109670.0,109660.0,1.23824531]
[1748334102234,0.66990752,109670.0,109660.0,1.08211232]
[1748334102426,0.66990752,109670.0,109660.0,0.91544531]
[1748334102633,0.26397934,109670.0,109660.0,1.34398427]
[1748334102935,0.67429934,109670.0,109660.0,1.34398427]
[1748334103331,0.66540943,109670.0,109660.0,1.34398427]
[1748334103835,0.25508943,109670.0,109660.0,1.34398427]
[1748334104036,0.66540943,109670.0,109660.0,1.40174421]
[1748334105643,0.66540943,109670.0,109660.0,1.42714421]
[1748334106532,0.66528943,109670.0,109660.0,1.42714421]
[1748334106729,0.66528943,109670.0,109660.0,1.55417814]
[1748334106929,0.66528943,109670.0,109660.0,1.42563918]
[1748334107130,0.66528943,109670.0,109660.0,1.40023918]
[1748334109937,0.66528943,109670.0,109660.0,1.42563918]
[1748334110341,0.66528943,109670.0,109660.0,1.55417814]
[1748334111449,0.66528943,109670.0,109660.0,1.52877814]
[1748334111743,0.66528943,109670.0,109660.0,1.40023918]
[1748334113646,0.6563995,109670.0,109660.0,1.40023918]
[1748334114047,0.6563995,109670.0,109660.0,1.34247924]
[1748334114648,0.65200768,109670.0,109660.0,1.34247924]
[1748334115746,0.6563995,109670.0,109660.0,1.34247924]
[1748334117944,0.65200768,109670.0,109660.0,1.34247924]
[1748334118842,0.6563995,109670.0,109660.0,1.34247924]
[1748334121742,0.65684137,109670.0,109660.0,1.16015234]
[1748334121947,0.24652137,109670.0,109660.0,0.98167924]
[1748334122150,0.65684137,109670.0,109660.0,1.40023918]
[1748334122446,0.65684137,109670.0,109660.0,1.03943918]
[1748334122648,0.65684137,109670.0,109660.0,1.40023918]
[1748334123146,0.65684137,109670.0,109660.0,1.42563918]
[1748334124343,0.65684137,109670.0,109660.0,1.36787924]
[1748334124652,0.65684137,109670.0,109660.0,1.34247924]
[1748334124836,0.65684137,109670.0,109660.0,0.98167924]
[1748334125642,0.64795082,109670.0,109660.0,0.98167924]
[1748334127853,0.64795082,109670.0,109660.0,1.03948264]
[1748334131453,0.64750895,109670.0,109660.0,1.03948264]
[1748334131650,0.64795082,109670.0,109660.0,1.03948264]
[1748334135157,0.64795082,109670.0,109660.0,1.40028264]
[1748334135961,0.6390604,109670.0,109660.0,1.03948264]
[1748334136258,0.6390604,109670.0,109660.0,1.40028264]
[1748334136461,0.6390604,109670.0,109660.0,1.42558264]
[1748334136661,0.6390604,109670.0,109660.0,1.06478264]
[1748334137454,0.6390604,109670.0,109660.0,1.07240147]
[1748334137960,0.6390604,109670.0,109660.0,1.04710147]
[1748334138553,0.6390604,109670.0,109660.0,1.40790147]
[1748334139063,0.6390604,109670.0,109660.0,1.07250147]
[1748334139464,0.6390604,109670.0,109660.0,1.06309337]
[1748334139760,1.63515936,109670.0,109660.0,0.45113204]
[1748334140062,1.87236986,109670.0,109660.0,0.28880154]
[1748334140855,1.87236986,109670.0,109660.0,0.29068795]
[1748334141255,1.62236986,109670.0,109660.0,0.29068795]
[1748334141464,0.2287404,109670.0,109660.0,0.29068795]
[1748334141772,0.2288604,109670.0,109660.0,0.75891096]
[1748334142064,0.6392204,109670.0,109660.0,0.82201096]
[1748334142254,0.6391004,109670.0,109660.0,0.82201096]
[1748334142565,0.6392204,109670.0,109660.0,0.82582912]
[1748334142770,0.6392204,109670.0,109660.0,0.71007966]
[1748334143263,0.6392204,109670.0,109660.0,0.58304573]
[1748334143656,0.2288604,109670.0,109660.0,0.58304573]
[1748334143851,0.6392204,109670.0,109660.0,1.05959519]
[1748334144057,0.6392204,109670.0,109660.0,0.94384573]
[1748334147462,1.1285482,109670.0,109660.0,0.33761883]
[1748334147665,1.1285482,109670.0,109660.0,0.26684663]
[1748334147963,1.1285482,109670.0,109660.0,0.21071583]
[1748334148662,1.12810633,109670.0,109660.0,0.21071583]
[1748334148868,1.1285482,109670.0,109660.0,0.21071583]
[1748334149267,1.13896008,109670.0,109660.0,0.21071583]
[1748334149961,1.13996008,109670.0,109660.0,0.21071583]
[1748334150169,1.14096008,109670.0,109660.0,0.21071583]
[1748334151669,1.23214808,109670.0,109660.0,0.21071583]
[1748334152660,1.14096008,109670.0,109660.0,0.21071583]
[1748334153362,1.01243228,109670.0,109660.0,0.21071583]
[1748334153556,1.14096008,109670.0,109660.0,0.21071583]
[1748334153956,1.14096008,109670.0,109660.0,0.22378335]
[1748334154369,1.14096008,109670.0,109660.0,0.27262031]
[1748334155364,1.14100008,109670.0,109660.0,0.27262031]
[1748334155564,1.14100008,109670.0,109660.0,0.27451237]
[1748334156576,1.14100008,109670.0,109660.0,0.26880441]
[1748334156780,1.14100008,109670.0,109660.0,0.21996745]
[1748334158274,0.73060008,109670.0,109660.0,0.21996745]
[1748334158466,1.14100008,109670.0,109660.0,0.21996745]
[1748334158973,1.01247228,109670.0,109660.0,0.21996745]
[1748334159367,1.14100008,109670.0,109660.0,0.21996745]
[1748334160380,1.14100008,109670.0,109660.0,0.02602315]
[1748334160574,1.14100008,109670.0,109660.0,0.01971808]
[1748334160878,0.1823599,109640.0,109630.0,0.74063166]
[1748334161180,0.1823599,109640.0,109630.0,0.8201764]
[1748334161380,0.2460599,109640.0,109630.0,0.8201764]
[1748334161783,0.23716726,109640.0,109630.0,0.8201764]
[1748334163082,0.23716726,109640.0,109630.0,0.87401448]
[1748334163280,0.23716726,109640.0,109630.0,0.93177616]
[1748334163782,0.23716726,109640.0,109630.0,0.74939976]
[1748334164083,0.23716726,109640.0,109630.0,0.84459976]
[1748334164780,0.23716726,109640.0,109630.0,1.02697636]
[1748334165493,0.23716726,109640.0,109630.0,0.84459976]
[1748334166090,0.23716726,109640.0,109630.0,0.738]
[1748334166294,0.23716726,109640.0,109630.0,0.736]
[1748334167397,0.23716726,109640.0,109630.0,0.9183765]
[1748334169197,0.23716726,109640.0,109630.0,0.6205765]
[1748334169500,0.25102604,109640.0,109630.0,0.6205765]
[1748334170199,0.25102604,109640.0,109630.0,0.73630619]
[1748334170701,0.25541786,109640.0,109630.0,0.73630619]
[1748334171698,0.00439182,109640.0,109630.0,1.09710619]
[1748334171905,0.18675172,109640.0,109630.0,1.09710619]
[1748334172095,0.18687172,109640.0,109630.0,1.09710619]
[1748334172795,0.18687172,109640.0,109630.0,1.10471607]
[1748334173095,0.18687172,109640.0,109630.0,1.11768579]
[1748334173998,0.18687172,109640.0,109630.0,1.224324]
[1748334176198,0.21867172,109640.0,109630.0,1.17545997]
[1748334176400,0.21867172,109640.0,109630.0,1.11768073]
[1748334177905,0.21867172,109640.0,109630.0,1.12722472]
[1748334178399,0.59731172,109640.0,109630.0,1.17613088]
[1748334179006,1e-08,109640.0,109630.0,1.92778288]
[1748334179204,0.22807208,109650.0,109640.0,0.1823599]
[1748334179396,0.22807208,109650.0,109640.0,1.0725257]
[1748334179899,0.18248018,109650.0,109640.0,1.0725257]
[1748334180905,0.18248018,109650.0,109640.0,1.439437]
[1748334181303,0.18248018,109650.0,109640.0,1.3108712]
[1748334181503,0.18248018,109650.0,109640.0,1.439437]
[1748334181804,0.18248018,109650.0,109640.0,1.54617316]
[1748334182308,0.18248018,109650.0,109640.0,1.54717316]
[1748334182507,0.18248018,109650.0,109640.0,1.54917316]
[1748334182906,0.18248018,109650.0,109640.0,1.55691159]
[1748334183511,0.00013688,109650.0,109640.0,1.55791159]
[1748334183812,0.00025688,109650.0,109640.0,1.42934579]
[1748334184014,0.00025688,109650.0,109640.0,1.55791159]
[1748334184314,0.00025688,109650.0,109640.0,1.55691159]
[1748334184510,0.00025688,109650.0,109640.0,1.55891159]
[1748334184705,0.00025688,109650.0,109640.0,1.56844602]
[1748334184903,0.0046487,109650.0,109640.0,1.43988022]
[1748334185213,0.186992,109650.0,109640.0,1.56844602]
[1748334185613,0.186992,109650.0,109640.0,1.20153472]